Cogmind - Beta 11 X7 @@@ ROGUE MODE // 2021.12.02 @ 21:29:33 // Winter2019/RPGLIKE Player: kasaphescent Result: Destroyed by G-47 Trooper with Particle Gun Performance ------------- Evolutions (2) 1000 Regions Visited (4) 800 Robots Destroyed (66) 330 Value Destroyed (1739) 1739 Prototype IDs (4) 80 Alien Tech Used (0) 0 Bonus (100) 100 TOTAL SCORE: 4049 Bonus ------- High Alert Combat Kills 100 Cogmind --------- Core Integrity 0/600 Matter 115/300 Energy 275/275 System Corruption 0% Temperature Cool (27) Movement Walking (120) Location -8/Materials Parts ------- > --- POWER (1) -------- Deuterium Engine > --- PROPULSION (4) --- Aluminum Leg Aluminum Leg Aluminum Leg Aluminum Leg > --- UTILITY (3) ------ Cooling System Improved Targeting Computer Medium Armor Plating > --- WEAPON (4) ------- Light Assault Rifle Light Assault Rifle Improved Assault Rifle Enhanced Autogun > --- INVENTORY (2) ---- Missile Launcher Peak State ------------ > --- POWER ------------ Light Nuclear Core > --- PROPULSION ------- Aluminum Leg Aluminum Leg Aluminum Leg Aluminum Leg > --- UTILITY ---------- Cooling System Improved Targeting Computer Medium Armor Plating > --- WEAPON ----------- Light Assault Rifle Improved Assault Rifle Enhanced Autogun Advanced EMP Blaster > --- INVENTORY -------- Particle Gun Light Assault Rifle [Rating: 25] Favorites ----------- Power Light Nuclear Core Engine Ion Engine Power Core Light Nuclear Core Propulsion Aluminum Leg Treads Improved Treads Leg Aluminum Leg Wheel Compact Wheel Hover Unit Hover Unit Utility Improved Heat Sink Device Improved Heat Sink Processor Improved Targeting Computer Protection Medium Armor Plating Weapon Particle Gun Energy Gun Particle Gun Ballistic Gun Shotgun Launcher Grenade Launcher Build | -11 -10 -10 -9 -8 ------- Run | Scr Mat Min Mat Mat Slots Evolved 8 | 3 . . 5 . Power . | . . . . . Propulsion 3 | 1 . . 2 . Utility 2 | 1 . . 1 . Weapon 3 | 1 . . 2 . Parts Attached 46 | 5 10 4 22 5 Power 4 | 1 . 1 1 1 Engine 2 | 1 . . . 1 Core 2 | . . 1 1 . Reactor . | . . . . . Propulsion 16 | 2 6 1 7 . Treads 2 | . 2 . . . Leg 10 | . 2 1 7 . Wheel 2 | 2 . . . . Hover 2 | . 2 . . . Flight . | . . . . . Utility 9 | . 2 . 6 1 Device 4 | . 2 . 2 . Storage . | . . . . . Processor 1 | . . . 1 . Hackware . | . . . . . Protection 4 | . . . 3 1 Artifact . | . . . . . Weapon 17 | 2 2 2 8 3 Energy Gun 6 | . . 2 4 . Energy Cannon . | . . . . . Ballistic Gun 9 | 2 2 . 3 2 Ballistic Cannon . | . . . . . Launcher 2 | . . . 1 1 Special Weapon . | . . . . . Impact Weapon . | . . . . . Slashing Weapon . | . . . . . Piercing Weapon . | . . . . . Special Melee Weapon . | . . . . . Unidentified Prototypes 4 | . . . 2 2 Parts Lost . | . . . . . Power . | . . . . . Propulsion . | . . . . . Utility . | . . . . . Weapon . | . . . . . Highest Loss Streak . | . . . . . Average Slot Usage (%) 95 | . 82 100 99 100 Engine 4 | . 14 1 . 4 Core 8 | . . 12 11 3 Treads 1 | . 5 . . . Leg 27 | . 4 28 39 33 Wheel 2 | . 9 . . . Hover 1 | . 5 . . . Device 15 | . 14 28 12 8 Processor 1 | . . . 1 8 Protection 5 | . . . 10 8 Energy Gun 12 | . . 15 19 . Ballistic Gun 14 | . 28 12 4 33 Naked Turns . | . . . . . Heaviest Build 26 | 9 13 13 22 26 Greatest Support 46 | 26 46 20 40 40 Greatest Overweight (x) 3 | . 3 . . . Average Overweight (x) . | . . . . . Largest Inventory Capacity 2 | . 1 2 2 2 Average Capacity 1 | . . 1 2 2 Most Carried 2 | . 1 2 2 2 Average Carried 1 | . . 1 1 1 Final Capacity 2 | . 1 2 2 2 Final Carried 2 | . 1 2 2 1 Class Distribution -------------------- 65% | Scavenger-Mutant 25% | Mutant 9% | Scavenger-Gunner Dominant Class ---------------- Mutant | -10/Materials Scavenger-Mutant | -10/Mines Scavenger-Mutant | -9/Materials Scavenger-Gunner | -8/Materials Resources | -11 -10 -10 -9 -8 ----------- Run | Scr Mat Min Mat Mat Matter Collected 1125 | 250 329 189 332 25 Remotely . | . . . . . Salvage Created 2326 | . 435 235 1507 149 Parts 138 | . 23 14 82 19 Haulers Intercepted 5 | . 2 . 3 . Recyclers Shooed 3 | . . 1 2 . Parts Field Recycled . | . . . . . Retrieved Matter . | . . . . . Parts Self-Destructed . | . . . . . Prevented . | . . . . . Kills | -11 -10 -10 -9 -8 ------- Run | Scr Mat Min Mat Mat Combat Hostiles Destroyed 51 | . 8 7 29 7 Guns 45 | . 8 7 23 7 AOE 3 | . . . 3 . Classes Destroyed 9 | . 4 1 4 . Worker 2 | . 1 . 1 . Tunneler 2 | . . . 2 . Hauler 5 | . 2 . 3 . Recycler 3 | . 1 1 1 . Watcher 3 | . . . 2 1 Swarmer 14 | . . 3 7 4 Grunt 29 | . 8 4 14 3 Duelist 1 | . . . 1 . Sentry 7 | . . . 7 . Best Kill Streak 7 | . 2 2 6 7 Combat Bots Only 7 | . 2 2 6 7 Max Kills in Single Turn 3 | . 2 1 3 1 Gunslinging . | . . . . . Exploded 3 | . . . 3 . Melee . | . . . . . Uniques/NPCs Destroyed . | . . . . . Combat | -11 -10 -10 -9 -8 -------- Run | Scr Mat Min Mat Mat Damage Taken 2368 | . 363 311 1359 335 Core 1782 | . 288 244 1007 243 Absorbed by Shields . | . . . . . Redirected to Core 1417 | . 251 210 753 203 Core Remaining (%) 79 | 100 . 100 38 . Volleys Fired 188 | . 42 28 98 20 Largest 4 | . 2 2 2 4 Hottest 130 | . 46 130 130 88 Shots Fired 414 | . 84 56 194 80 Gun 413 | . 84 56 193 80 Cannon . | . . . . . Launcher 1 | . . . 1 . Special . | . . . . . Kinetic 227 | . 84 29 34 80 Thermal 171 | . . 27 144 . Explosive 1 | . . . 1 . Electromagnetic 15 | . . . 15 . Robot Hit Streak 17 | . 10 5 17 15 Robot Miss Streak 3 | . 3 3 3 2 Penetration Max . | . . . . . Secondary Targets 6 | . 1 2 . 3 Max Gunslinging Chain 1 | . 1 1 . 1 Shots Hit Robots 291 | . 57 32 143 59 Core Hits 112 | . 26 14 57 15 Critical Kills 2 | . 1 . . 1 Critical Parts Destroyed 1 | . . . . 1 Critical Strikes 15 | . 1 1 11 2 Burn 12 | . . 1 11 . Destroy 3 | . 1 . . 2 Melee Attacks . | . . . . . Impact . | . . . . . Slashing . | . . . . . Piercing . | . . . . . Sneak Attacks . | . . . . . Combat Hostiles . | . . . . . Follow-up Attacks . | . . . . . Damage Inflicted 4393 | . 810 512 2326 745 Guns 4191 | . 810 512 2124 745 Cannons . | . . . . . Explosions 202 | . . . 202 . Melee . | . . . . . Ramming . | . . . . . Kinetic 2325 | . 810 301 469 745 Thermal 1784 | . . 211 1573 . Explosive 90 | . . . 90 . Electromagnetic 194 | . . . 194 . Impact . | . . . . . Slashing . | . . . . . Piercing . | . . . . . Highest Corruption 2 | . . . 2 . Average Corruption 2 | . . . 2 . Corruption Purged . | . . . . . Effects 4 | . . . 4 . Message Errors 2 | . . . 2 . Energy Discharges 1 | . . . 1 . Data Loss (minor) 1 | . . . 1 . Overload Shots . | . . . . . Overflow Damage 18 | . . . 18 . Projectiles . | . . . . . Explosions 18 | . . . 18 . Melee . | . . . . . Knockbacks . | . . . . . Impact . | . . . . . Kinetic . | . . . . . Secondary . | . . . . . Self-Inflicted Damage 35 | . . . 35 . Shots 1 | . . . 1 . Rammed . | . . . . . Targets Rammed . | . . . . . Kicked . | . . . . . Crushed . | . . . . . Highest Temperature 189 | . 8 . 189 69 Average Temperature 48 | . 3 . 57 26 Received Heat Transfer 975 | . 243 114 411 207 Siege Activations . | . . . . . Robots Corrupted 1 | . . . 1 . Combat Hostiles 1 | . . . 1 . Parts Fried . | . . . . . Impact Corruptions . | . . . . . Robots Melted 2 | . . . 2 . Combat Hostiles 2 | . . . 2 . Parts Melted 19 | . . 1 18 . Heat Transferred 5182 | . . 555 4627 . Parts Sabotaged . | . . . . . Parts Stolen . | . . . . . Parts Stripped . | . . . . . Power Chain Reactions 2 | . . . 2 . Missiles Intercepted . | . . . . . Alert | -11 -10 -10 -9 -8 ------- Run | Scr Mat Min Mat Mat Peak Influence 654 | . 237 150 654 473 Initial 276 | . . 45 39 276 Average 220 | . 133 88 331 320 Maximum Alert Level 2 | . 1 . 2 2 Low Security (%) 51 | 100 69 100 22 . Level 1 30 | . 30 . 37 87 Level 2 18 | . . . 39 12 Level 3 . | . . . . . Level 4 . | . . . . . Level 5 . | . . . . . High Security . | . . . . . Max Security . | . . . . . Squads Dispatched 6 | . . . 3 3 Investigation 1 | . . . 1 . Extermination . | . . . . . Reinforcement 5 | . . . 2 3 Assault . | . . . . . Garrison . | . . . . . Intercept . | . . . . . Construction Impeded . | . . . . . Haulers Reinforced . | . . . . . Active Scanning Responses . | . . . . . Cargo Convoy Interrupts . | . . . . . Stealth | -11 -10 -10 -9 -8 --------- Run | Scr Mat Min Mat Mat Distress Signals 6 | . 3 . 3 . Communications Jammed . | . . . . . Distress Signals . | . . . . . Times Spotted 75 | . 13 8 40 14 Peak Tracking Total 8 | . 3 3 6 8 Tactical Retreats 4 | . . 1 2 1 Traps | -11 -10 -10 -9 -8 ------- Run | Scr Mat Min Mat Mat Traps Triggered 2 | . . . 2 . Indirectly . | . . . . . Trap Hack Attempts . | . . . . . Triggered . | . . . . . Disarmed . | . . . . . Reprogrammed . | . . . . . Reused . | . . . . . Traps Extracted . | . . . . . Installed . | . . . . . Triggered . | . . . . . Machines | -11 -10 -10 -9 -8 ---------- Run | Scr Mat Min Mat Mat Machines Disabled 2 | . 2 . . . Max in Single Turn 2 | . 2 . . . Machines Sabotaged . | . . . . . Garrisons Compromised . | . . . . . Overloaded Fab Kills . | . . . . . Fab Network Shutdowns . | . . . . . Hacking | -11 -10 -10 -9 -8 --------- Run | Scr Mat Min Mat Mat Machines Accessed 2 | . 2 . . . Terminals 1 | . 1 . . . Fabricators . | . . . . . Repair Stations . | . . . . . Recycling Units 1 | . 1 . . . Scanalyzers . | . . . . . Garrison Access . | . . . . . Total Hacks 4 | . 4 . . . Successful 3 | . 3 . . . Failed 1 | . 1 . . . Catastrophic . | . . . . . Database Lockouts . | . . . . . Manual 2 | . 2 . . . Terminals 2 | . 2 . . . Fabricators . | . . . . . Repair Stations . | . . . . . Recycling Units 2 | . 2 . . . Scanalyzers . | . . . . . Garrison Access . | . . . . . Terminal Hacks 1 | . 1 . . . Locate Traps 1 | . 1 . . . Fabricator Hacks . | . . . . . Repair Station Hacks . | . . . . . Recycling Unit Hacks 1 | . 1 . . . Retrieve Components 1 | . 1 . . . Scanalyzer . | . . . . . Garrison Access Hacks . | . . . . . Unauthorized Hacks 1 | . 1 . . . Terminals 1 | . 1 . . . Botnet 1 | . 1 . . . Fabricators . | . . . . . Repair Stations . | . . . . . Recycling Units . | . . . . . Scanalyzers . | . . . . . Garrison Access . | . . . . . Data Cores Recovered . | . . . . . Used . | . . . . . Hacking Detections 2 | . 2 . . . Full Trace Events . | . . . . . Feedback Events . | . . . . . Feedback Blocked . | . . . . . Robot Schematics Acquired . | . . . . . Robots Built . | . . . . . Matter . | . . . . . Time . | . . . . . Total Robot Build Rating . | . . . . . Part Schematics Acquired . | . . . . . Parts Built . | . . . . . Matter . | . . . . . Time . | . . . . . Total Part Build Rating . | . . . . . Parts Repaired . | . . . . . Time . | . . . . . Parts Recycled . | . . . . . Recycled Matter . | . . . . . Retrieved Matter . | . . . . . Retrieved Components 9 | . 9 . . . Parts Scanalyzed . | . . . . . Part Schematics Acquired . | . . . . . Parts Damaged . | . . . . . Bothacking | -11 -10 -10 -9 -8 ------------ Run | Scr Mat Min Mat Mat Used RIF Installer . | . . . . . Robots Hacked . | . . . . . Non-combat . | . . . . . Combat . | . . . . . Robot Hacks Applied . | . . . . . Relay Couplers Released . | . . . . . Robots Rewired . | . . . . . Allies Hacked . | . . . . . Hacks Repelled . | . . . . . Allies | -11 -10 -10 -9 -8 -------- Run | Scr Mat Min Mat Mat Total Allies . | . . . . . Largest Group . | . . . . . Highest-Rated Group . | . . . . . Highest-Rated Ally . | . . . . . Total Orders . | . . . . . Ally Attacks . | . . . . . Total Damage . | . . . . . Kills . | . . . . . Allies Corrupted . | . . . . . Allies Melted . | . . . . . Intel | -11 -10 -10 -9 -8 ------- Run | Scr Mat Min Mat Mat Robot Analysis Total . | . . . . . Derelict Logs Recovered . | . . . . . Drone Launches . | . . . . . Drone Recoveries . | . . . . . Exploration | -11 -10 -10 -9 -8 ------------- Run | Scr Mat Min Mat Mat Turns Passed 2305 | 58 569 501 1001 176 Spaces Moved 1221 | 57 304 318 451 91 Core 5 | 3 2 . . . Treads 58 | . 58 . . . Legs 942 | . 82 318 451 91 Wheels 145 | 54 91 . . . Hover 71 | . 71 . . . Flight . | . . . . . Fastest Speed 50 | 50 56 120 120 120 Average Speed 118 | 88 118 120 120 120 Slowest Speed 200 | 100 200 120 120 120 Overloaded Moves . | . . . . . Propulsion Burnouts . | . . . . . Robots Hopped . | . . . . . Cave-ins Triggered . | . . . . . Exploration Rate (%) 39 | 3 37 80 65 12 Regions Visited 4 Branch Regions 1 Pre-discovered Areas . | . . . . . Known Exits Taken . | . . . . . Unknown Exits Taken 4 | 1 1 1 1 . Scrap Searched 1 | . . 1 . . Spaces Dug . | . . . . . Terrain Destroyed 22 | . 7 . 15 . Melee . | . . . . . Projectile . | . . . . . AOE 22 | . 7 . 15 . Terrain Rammed . | . . . . . Walls Destroyed . | . . . . . Machines Disabled . | . . . . . Actions | -11 -10 -10 -9 -8 --------- Run | Scr Mat Min Mat Mat Total 1715 | 61 429 383 717 125 Wait 156 | . 47 6 102 1 Move 1217 | 56 303 317 450 91 Hop . | . . . . . Pick Up 7 | . 1 4 1 1 Fast Attach 30 | 5 8 3 11 3 Attach . | . . . . . Detach 2 | . . . 1 1 Swap 16 | . 2 1 11 2 Drop 35 | . 8 7 14 6 Fire 188 | . 42 28 98 20 Melee . | . . . . . Ram . | . . . . . Kick . | . . . . . Crush . | . . . . . Escape Stasis . | . . . . . Rewire . | . . . . . Trap . | . . . . . Miscellaneous 64 | . 18 17 29 . Route ------- -11/Scrapyard -10/Materials (discovered 2 exits: [*Min x2]) -10/Mines -9/Materials -8/Materials History --------- Turn | Location | Event 1 | -11/Scrapyard | Upgraded with Propulsion slot (x1) 1 | -11/Scrapyard | Upgraded with Utility slot (x1) 1 | -11/Scrapyard | Upgraded with Weapon slot (x1) 11 | -11/Scrapyard | Discovered new exit (range 16) 59 | -11/Scrapyard | Entered Materials 304 | -10/Materials | Build established: Mutant 350 | -10/Materials | Discovered new exit (range 13) 579 | -10/Materials | Discovered new exit (range 15) 628 | -10/Materials | Entered Mines 630 | -10/Mines | Reached level 2 741 | -10/Mines | Found a hidden stash of uninstalled traps 891 | -10/Mines | Build established: Scavenger-Mutant 1125 | -10/Mines | Discovered new exit (range 5) 1129 | -10/Mines | Entered Materials 1131 | -9/Materials | Reached level 3 1289 | -9/Materials | Reached level 4 1317 | -9/Materials | Upgraded with Propulsion slot (x2) 1431 | -9/Materials | Core integrity fell below 50% 1628 | -9/Materials | Reached level 5 1931 | -9/Materials | Upgraded with Utility slot (x1) 1964 | -9/Materials | Reached level 6 2087 | -9/Materials | Upgraded with Weapon slot (x2) 2112 | -9/Materials | Discovered new exit (range 16) 2130 | -9/Materials | Entered another Materials area 2131 | -8/Materials | Core integrity fell below 50% 2132 | -8/Materials | Reached level 7 2278 | -8/Materials | Core integrity fell below 20% 2287 | -8/Materials | Reached level 8 2306 | -8/Materials | Destroyed by G-47 Trooper with Particle Gun Last Messages --------------- 02271_ Critical hit (Burn: +37). 02272_ K-01 Serf collects debris. 02273_ G-47 Trooper destroyed. 02275_ K-01 Serf collects debris. 02279_ S-10 Pest destroyed. 02279_ Switching to secondary target: G-47 Trooper. 02279_ K-01 Serf collects debris. 02284_ G-47 Trooper suffers critical hit (Destroy). 02284_ G-47 Trooper destroyed. 02287_ Reached level 8. 02287_ S-10 Pest destroyed. 02288_ K-01 Serf collects debris. 02293_ Protomatter-39 decays. 02294_ K-01 Serf collects debris. 02300_ Destroyed Lgt. Nuclear Core. 02300_ G-47 Trooper destroyed. 02301_ K-01 Serf collects debris. 02303_ Acquired 25 matter. 02304_ K-01 Serf collects debris. 02306_ Critical hit (Burn: +37). Map ----- +----------------------------------------------------+ | ?????????????????????????????????????????????????? | | ?????????????????????????????????????????????????? | | ?????????????????????????????????????????????????? | | ?????????????????????????????????????????????????? | | ?????????????????????????????????????????????????? | | ?????????????????????????????????????????????????? | | ?????????????????????????????????????????????????? | | ?????????????????????????????????????????????????? | | ?????????????????????????#+#?????????????????????? | | ????????????????????????? ?????????????????????? | | ????????????????????????? ?????????????????????? | | ????????????????????????? ?????????????????????? | | ????????????????????????? !!?????????????????????? | | ????????????????????????? !!?????????????????????? | | ????????????????????????? !!?????????????????????? | | ????????+???????????????? ???? ??????????????? | | ????????# ??????????????? ???# ??????????????? | | ????????# ?????????????? [=???# ??????????????? | | ????????# #####+#???????#+#???# ??????????????? | | ????????# #???????#%#???# #?????????????? | | ????????# #???????#=#???# #?????????????? | | ????????# #???????#%#???# #?????????????? | | ???????## !![ T???????#%#???# ##########????? | | ??###+## !!] #??????## #####a #????? | | ? ! !! ########*=%/% r #????? | | ? !!@[k*[ ][ #????? | | ???????# =[= """"" #????? | | ????????#/################* ]]]k """"" #????? | | ?????????????????????????# ]g """"" ####### | | ?????????????????????????# ]] g ] # | | ??????????????????#####??# g # """ | | ??????????????????# ?# ! + "R | | ??????????????????# # ##### # """ | | ??????????????????# " " # #???# # | | ??????????????????# "T" + ######+##???# #! [ | | ??????????????????# """ # #??? ???########### | | ??????????????????# + #?# """ ???????????? | | ??????????????????########/### """ #?????????? | | ?????????????????????# ! # """ #?????????? | | ?????????????????????#" # "#?????????? | | ?????????????????????#T *] # T#?????????? | | ?????????????????????#" * # "#?????????? | | ?????????????????????# #? #?????????? | | ?????????????????????#########??########?????????? | | | | | | | | | | | | | +----------------------------------------------------+ Best States ------------- Heat Dissipation 61 Energy Generation 14 Energy Capacity 275 Matter Stores 300 Matter Capacity 300 Sight Range 16 Terrain Scan Range 16 Terrain Scan Density 10 Armor Coverage 225 Evasion (%) 55 Targeting Accuracy 6 Recoil Reduction 2 Item Schematics ----------------- None Robot Schematics ------------------ None Fabricated ------------ Nothing Alien Tech Used ----------------- None Achievements -------------- None Challenges ------------ None RPGLIKE | -11 -10 -10 -9 -8 --------- Run | Scr Mat Min Mat Mat Levels Raised 7 | . . 1 4 2 XP Earned 13743 | 3000 1310 1500 5512 2421 XP Spent 6850 | 1500 250 500 4600 . Upgrades 10 | 3 1 1 5 . Propulsion Slot 3 | 1 . . 2 . Utility Slot 2 | 1 . . 1 . Weapon Slot 3 | 1 . . 2 . Inventory Capacity 2 | . 1 1 . . Protomatter Created 531 | . 156 56 213 106 Integrity Restored 1274 | . 335 300 639 . Core 1171 | . 288 244 639 . Parts 103 | . 47 56 . . Protomatter Decayed 50 | . 11 . . 39 Game ------ Seed VortexWeightProtection Manual? 0 Play Time 00:19:56 Cumulative 173.0 hours Start 2021.12.02 @ 19:58:53 End 2021.12.02 @ 21:29:33 Sessions 3 Manual Loads 0 Difficulty Rogue Special Mode Winter2019/RPGLIKE Game No. 119 Rogue 119 Adventurer 0 Explorer 0 Win Type - Total 2 Types 2/0/0/0/0/0/0/0/0 Lore% 56 Gallery% 74 Achievement% 52 Wizard Run 0 Options --------- ASCII 0 Keyboard 1 Movement Numpad Keybinds 0 Fullscreen 1 Font 18/SmallcapsGlow Map View 76x50 Tactical HUD 1 Map Filters NONE Filters NONE Steam 1 RUN: 9136bd8c-866d-4a08-819a-59a6f23e767c